[Event "Early-Titled-Tuesday-Blitz-May-14-2024"]
[Site "Chess.com"]
[Date "2024.05.14"]
[Round "3"]
[White "savitha1030"]
[Black "vovachesss"]
[Result "1-0"]
[WhiteElo "2520"]
[BlackElo "2832"]
[TimeControl "180+1"]
[EndTime "8:30:48 PDT"]
[Termination "savitha1030 won by resignation"]

1. Nf3 {[%clk 0:03:00.9]} 1... d5 {[%clk 0:02:59.6]} 2. g3 {[%clk 0:02:55.7]}
2... Nd7 {[%clk 0:02:59]} 3. d4 {[%clk 0:02:54.9]} 3... Nb6 {[%clk 0:02:59.3]}
4. Bg2 {[%clk 0:02:54.7]} 4... Bf5 {[%clk 0:02:58.8]} 5. O-O {[%clk 0:02:55.3]}
5... e6 {[%clk 0:02:59.4]} 6. Nc3 {[%clk 0:02:55.4]} 6... h6 {[%clk 0:02:50.9]}
7. Bf4 {[%clk 0:02:48.8]} 7... Nf6 {[%clk 0:02:42.3]} 8. Nb5 {[%clk 0:02:40.6]}
8... Bd6 {[%clk 0:02:42.3]} 9. Nxd6+ {[%clk 0:02:40]} 9... cxd6 {[%clk
0:02:43.2]} 10. c3 {[%clk 0:02:31.6]} 10... O-O {[%clk 0:02:41.1]} 11. Nd2
{[%clk 0:02:29.6]} 11... Re8 {[%clk 0:02:36.8]} 12. Nf3 {[%clk 0:02:11.5]} 12...
Nc4 {[%clk 0:02:18.5]} 13. b3 {[%clk 0:02:09]} 13... Na3 {[%clk 0:02:14.2]} 14.
Rc1 {[%clk 0:02:07]} 14... Rc8 {[%clk 0:02:12.5]} 15. h3 {[%clk 0:02:03.2]}
15... Ne4 {[%clk 0:02:07.1]} 16. Bd2 {[%clk 0:01:53.8]} 16... Qa5 {[%clk
0:02:03.4]} 17. c4 {[%clk 0:01:50.6]} 17... Qa6 {[%clk 0:01:37.5]} 18. cxd5
{[%clk 0:01:46.4]} 18... exd5 {[%clk 0:01:36.8]} 19. Bb4 {[%clk 0:01:38.3]}
19... Nf6 {[%clk 0:00:54]} 20. Nh4 {[%clk 0:01:17.7]} 20... Bh7 {[%clk
0:00:45.5]} 21. Bf3 {[%clk 0:01:01.6]} 21... Nc2 {[%clk 0:00:44.1]} 22. a3
{[%clk 0:01:01.5]} 22... Nxb4 {[%clk 0:00:38.2]} 23. axb4 {[%clk 0:01:02.4]}
23... Qb6 {[%clk 0:00:34.3]} 24. Qd2 {[%clk 0:01:01.8]} 24... a6 {[%clk
0:00:17.9]} 25. Ng2 {[%clk 0:00:58.7]} 25... Be4 {[%clk 0:00:13.8]} 26. Ne3
{[%clk 0:00:52.2]} 26... Qb5 {[%clk 0:00:13.8]} 27. Bxe4 {[%clk 0:00:42.7]}
27... dxe4 {[%clk 0:00:08.3]} 28. Rc4 {[%clk 0:00:41.9]} 28... Rc6 {[%clk
0:00:03.6]} 29. Rfc1 {[%clk 0:00:42]} 29... Rec8 {[%clk 0:00:03.1]} 30. d5
{[%clk 0:00:41.7]} 30... Rxc4 {[%clk 0:00:01.9]} 31. bxc4 {[%clk 0:00:42.6]}
31... Qb6 {[%clk 0:00:01.8]} 32. Kg2 {[%clk 0:00:30.4]} 32... Qc7 {[%clk
0:00:02.7]} 33. c5 {[%clk 0:00:29.6]} 33... a5 {[%clk 0:00:02.5]} 34. c6 {[%clk
0:00:25.2]} 34... axb4 {[%clk 0:00:02]} 35. Qxb4 {[%clk 0:00:26.1]} 35... bxc6
{[%clk 0:00:01.3]} 36. Rxc6 {[%clk 0:00:27]} 36... Qd8 {[%clk 0:00:01.6]} 37.
Rxd6 {[%clk 0:00:26.1]} 37... Qe7 {[%clk 0:00:01.6]} 38. Qb6 {[%clk 0:00:21]}
38... Re8 {[%clk 0:00:01.3]} 39. Rc6 {[%clk 0:00:18.7]} 39... Qe5 {[%clk
0:00:01.8]} 40. Qc5 {[%clk 0:00:17.8]} 40... h5 {[%clk 0:00:02.1]} 41. d6 {[%clk
0:00:18.3]} 41... Qxc5 {[%clk 0:00:02.2]} 42. Rxc5 {[%clk 0:00:19.2]} 42... Rd8
{[%clk 0:00:03.1]} 43. Nf5 {[%clk 0:00:19.7]} 43... g6 {[%clk 0:00:03.1]} 44.
Ne7+ {[%clk 0:00:20.3]} 44... Kg7 {[%clk 0:00:03.8]} 45. Rc6 {[%clk 0:00:20]}
45... Ne8 {[%clk 0:00:04.4]} 46. Rc4 {[%clk 0:00:17.1]} 46... Nxd6 {[%clk
0:00:04.2]} 47. Rd4 {[%clk 0:00:17.8]} 47... Nb7 {[%clk 0:00:04.3]} 48. Rxe4
{[%clk 0:00:17.5]} 48... Re8 {[%clk 0:00:04]} 49. Re3 {[%clk 0:00:17.2]} 49...
Kf8 {[%clk 0:00:04]} 50. Nd5 {[%clk 0:00:17.8]} 50... Rxe3 {[%clk 0:00:03.2]}
51. Nxe3 {[%clk 0:00:18.7]} 51... Kg7 {[%clk 0:00:03.7]} 52. g4 {[%clk
0:00:19.6]} 52... hxg4 {[%clk 0:00:03.8]} 53. hxg4 {[%clk 0:00:20.5]} 53... Nd6
{[%clk 0:00:04]} 54. Kg3 {[%clk 0:00:21.1]} 54... Ne4+ {[%clk 0:00:04.4]} 55.
Kf3 {[%clk 0:00:21.8]} 55... Nd2+ {[%clk 0:00:05]} 56. Kg2 {[%clk 0:00:22]}
56... Ne4 {[%clk 0:00:05.2]} 57. f3 {[%clk 0:00:22.7]} 57... Nd6 {[%clk
0:00:05.3]} 58. Kg3 {[%clk 0:00:23.1]} 58... g5 {[%clk 0:00:05.5]} 59. Nf5+
{[%clk 0:00:22.9]} 59... Nxf5+ {[%clk 0:00:03.3]} 60. gxf5 {[%clk 0:00:23.8]}
60... f6 {[%clk 0:00:02.2]} 61. e4 {[%clk 0:00:24.5]} 61... Kf7 {[%clk
0:00:02.3]} 62. Kg4 {[%clk 0:00:25]} 62... Kg7 {[%clk 0:00:02.4]} 63. Kh5 {[%clk
0:00:24.3]} 63... Kh7 {[%clk 0:00:02.8]} 64. e5 {[%clk 0:00:22]} 64... fxe5
{[%clk 0:00:02.2]} 65. Kxg5 {[%clk 0:00:22.9]} 65... Kg7 {[%clk 0:00:01.7]} 66.
f6+ {[%clk 0:00:23.6]} 66... Kf7 {[%clk 0:00:01.3]} 67. Kf5 {[%clk 0:00:24.5]}
67... Kf8 {[%clk 0:00:00.8]} 68. Kxe5 {[%clk 0:00:25.2]} 68... Kf7 {[%clk
0:00:01.1]} 69. Kf5 {[%clk 0:00:25.6]} 69... Kf8 {[%clk 0:00:01.4]} 70. Kg6
{[%clk 0:00:22.3]} 70... Kg8 {[%clk 0:00:01.7]} 71. f7+ {[%clk 0:00:22.8]} 71...
Kf8 {[%clk 0:00:02.2]} 72. f4 {[%clk 0:00:23.5]} 72... Ke7 {[%clk 0:00:02.2]}
73. Kg7 {[%clk 0:00:24.2]} 1-0

[Event "Early-Titled-Tuesday-Blitz-May-14-2024"]
[Site "Chess.com"]
[Date "2024.05.14"]
[Round "3"]
[White "ravengelic"]
[Black "twitchTriniCupid"]
[Result "1-0"]
[WhiteElo "2682"]
[BlackElo "2422"]
[TimeControl "180+1"]
[EndTime "8:30:51 PDT"]
[Termination "ravengelic won on time"]

1. d4 {[%clk 0:02:59.8]} 1... g6 {[%clk 0:02:57.5]} 2. Bf4 {[%clk 0:03:00]} 2...
Bg7 {[%clk 0:02:57.3]} 3. e3 {[%clk 0:03:00.5]} 3... Nf6 {[%clk 0:02:57]} 4. Nf3
{[%clk 0:03:00.8]} 4... O-O {[%clk 0:02:57.2]} 5. Bc4 {[%clk 0:03:01.1]} 5... d5
{[%clk 0:02:55.5]} 6. Bb3 {[%clk 0:03:01.2]} 6... a5 {[%clk 0:02:54.9]} 7. a3
{[%clk 0:03:01.3]} 7... a4 {[%clk 0:02:49.8]} 8. Ba2 {[%clk 0:03:01.2]} 8... Bg4
{[%clk 0:02:47.7]} 9. O-O {[%clk 0:03:01.4]} 9... c5 {[%clk 0:02:43.3]} 10. c3
{[%clk 0:02:46.9]} 10... Nc6 {[%clk 0:02:39.4]} 11. Nbd2 {[%clk 0:02:46.2]}
11... c4 {[%clk 0:02:33.8]} 12. Bb1 {[%clk 0:02:44.1]} 12... Bf5 {[%clk
0:02:30.5]} 13. Bxf5 {[%clk 0:02:42.5]} 13... gxf5 {[%clk 0:02:30.6]} 14. Ne5
{[%clk 0:02:42.8]} 14... e6 {[%clk 0:02:30.9]} 15. Qf3 {[%clk 0:02:36.9]} 15...
Ne4 {[%clk 0:02:28.7]} 16. Nxe4 {[%clk 0:02:26.6]} 16... fxe4 {[%clk 0:01:57]}
17. Qg3 {[%clk 0:02:26.3]} 17... Nxe5 {[%clk 0:01:54.3]} 18. Bxe5 {[%clk
0:02:25.3]} 18... f6 {[%clk 0:01:54.2]} 19. Bd6 {[%clk 0:02:23.2]} 19... Rf7
{[%clk 0:01:54.3]} 20. Bb4 {[%clk 0:02:19.4]} 20... Kh8 {[%clk 0:01:48.4]} 21.
Qh3 {[%clk 0:02:15.8]} 21... f5 {[%clk 0:01:41.6]} 22. f3 {[%clk 0:01:55.3]}
22... Qg5 {[%clk 0:01:35.6]} 23. fxe4 {[%clk 0:01:55.3]} 23... dxe4 {[%clk
0:01:35.7]} 24. Rf4 {[%clk 0:01:54.2]} 24... e5 {[%clk 0:01:21]} 25. Rh4 {[%clk
0:01:50.3]} 25... Qg6 {[%clk 0:01:19.4]} 26. Rf1 {[%clk 0:01:43.3]} 26... Rg8
{[%clk 0:01:07.8]} 27. g3 {[%clk 0:01:33.8]} 27... exd4 {[%clk 0:00:50.5]} 28.
cxd4 {[%clk 0:01:34.7]} 28... Rd8 {[%clk 0:00:13.3]} 29. Bc3 {[%clk 0:01:34.2]}
29... Rd5 {[%clk 0:00:13.2]} 30. Rff4 {[%clk 0:01:34]} 30... Kg8 {[%clk
0:00:12.8]} 31. Rh5 {[%clk 0:01:31.4]} 31... b5 {[%clk 0:00:11.7]} 32. Rxe4
{[%clk 0:01:24]} 32... fxe4 {[%clk 0:00:11.8]} 33. Rxd5 {[%clk 0:01:22.1]} 33...
Qf6 {[%clk 0:00:11.2]} 34. Qg2 {[%clk 0:01:21.2]} 34... Qf3 {[%clk 0:00:10.4]}
35. Rd8+ {[%clk 0:01:07.2]} 35... Bf8 {[%clk 0:00:09.9]} 36. Qxf3 {[%clk
0:00:58.3]} 36... Rxf3 {[%clk 0:00:09.6]} 37. Bb4 {[%clk 0:00:58.6]} 37... Kg7
{[%clk 0:00:09.8]} 38. Bd2 {[%clk 0:00:52.8]} 38... Kf7 {[%clk 0:00:07.5]} 39.
Rb8 {[%clk 0:00:51.1]} 39... Bh6 {[%clk 0:00:07.3]} 40. Rb7+ {[%clk 0:00:49.6]}
40... Kg6 {[%clk 0:00:06.4]} 41. Rb6+ {[%clk 0:00:45.3]} 41... Kg7 {[%clk
0:00:06.4]} 42. Rxb5 {[%clk 0:00:40.8]} 42... Bxe3+ {[%clk 0:00:07.3]} 43. Bxe3
{[%clk 0:00:41.1]} 43... Rxe3 {[%clk 0:00:08.2]} 44. Rb4 {[%clk 0:00:41.5]}
44... Re2 {[%clk 0:00:07.1]} 45. Rxc4 {[%clk 0:00:38]} 45... Rxb2 {[%clk
0:00:07.2]} 46. Rxa4 {[%clk 0:00:38]} 46... Kf6 {[%clk 0:00:07.2]} 47. Ra5
{[%clk 0:00:37.8]} 47... Rb3 {[%clk 0:00:06.2]} 48. Re5 {[%clk 0:00:37.5]} 48...
Rxa3 {[%clk 0:00:06.3]} 49. Rxe4 {[%clk 0:00:37.6]} 49... Rd3 {[%clk 0:00:07.1]}
50. Kf2 {[%clk 0:00:37.2]} 50... Kf5 {[%clk 0:00:07.5]} 51. Rf4+ {[%clk
0:00:36.9]} 51... Kg5 {[%clk 0:00:07.9]} 52. h4+ {[%clk 0:00:37.8]} 52... Kg6
{[%clk 0:00:07.7]} 53. Rg4+ {[%clk 0:00:37.3]} 53... Kf5 {[%clk 0:00:07.4]} 54.
Rf4+ {[%clk 0:00:37.3]} 54... Kg6 {[%clk 0:00:07.6]} 55. Kg2 {[%clk 0:00:38.1]}
55... h5 {[%clk 0:00:07.7]} 56. Re4 {[%clk 0:00:37.5]} 56... Kf5 {[%clk
0:00:07.4]} 57. Re5+ {[%clk 0:00:37.4]} 57... Kf6 {[%clk 0:00:07.9]} 58. Rxh5
{[%clk 0:00:36.9]} 58... Rxd4 {[%clk 0:00:08.5]} 59. Kh3 {[%clk 0:00:35.9]}
59... Rd3 {[%clk 0:00:08.5]} 60. Ra5 {[%clk 0:00:34.5]} 60... Rd4 {[%clk
0:00:08.7]} 61. h5 {[%clk 0:00:30.7]} 61... Rc4 {[%clk 0:00:08.1]} 62. g4 {[%clk
0:00:30.5]} 62... Rc1 {[%clk 0:00:07]} 63. Rf5+ {[%clk 0:00:29.8]} 63... Kg7
{[%clk 0:00:06.7]} 64. Kh4 {[%clk 0:00:29.7]} 64... Rg1 {[%clk 0:00:05.3]} 65.
Kg5 {[%clk 0:00:29.9]} 65... Rc1 {[%clk 0:00:04.3]} 66. h6+ {[%clk 0:00:29.7]}
66... Kh7 {[%clk 0:00:04.6]} 67. Rf7+ {[%clk 0:00:29.5]} 67... Kh8 {[%clk
0:00:04.4]} 68. Kh5 {[%clk 0:00:26.2]} 68... Rh1+ {[%clk 0:00:03.9]} 69. Kg6
{[%clk 0:00:26.3]} 69... Rxh6+ {[%clk 0:00:00.1]} 70. Kxh6 {[%clk 0:00:26.1]}
1-0

[Event "Early-Titled-Tuesday-Blitz-May-14-2024"]
[Site "Chess.com"]
[Date "2024.05.14"]
[Round "3"]
[White "Kotofeyca"]
[Black "TreinadorBR"]
[Result "0-1"]
[WhiteElo "2497"]
[BlackElo "2338"]
[TimeControl "180+1"]
[EndTime "8:30:58 PDT"]
[Termination "TreinadorBR won by checkmate"]

1. d4 {[%clk 0:03:00.9]} 1... d5 {[%clk 0:02:58.4]} 2. c4 {[%clk 0:03:01.2]}
2... c6 {[%clk 0:02:57.9]} 3. Nc3 {[%clk 0:03:01.7]} 3... Nf6 {[%clk 0:02:58.8]}
4. cxd5 {[%clk 0:03:02]} 4... cxd5 {[%clk 0:02:58.2]} 5. Bf4 {[%clk 0:03:02.6]}
5... Nc6 {[%clk 0:02:59]} 6. e3 {[%clk 0:03:03.1]} 6... a6 {[%clk 0:02:58.7]} 7.
Bd3 {[%clk 0:03:00.8]} 7... Bg4 {[%clk 0:02:54.8]} 8. f3 {[%clk 0:03:00.8]} 8...
Bh5 {[%clk 0:02:51.1]} 9. Nge2 {[%clk 0:03:01.3]} 9... e6 {[%clk 0:02:48.4]} 10.
O-O {[%clk 0:03:01.4]} 10... Bd6 {[%clk 0:02:46.3]} 11. Rc1 {[%clk 0:03:01.8]}
11... Rc8 {[%clk 0:02:38.1]} 12. Na4 {[%clk 0:03:00.5]} 12... O-O {[%clk
0:02:35]} 13. Nc5 {[%clk 0:02:54]} 13... Bxc5 {[%clk 0:02:31.1]} 14. Rxc5 {[%clk
0:02:54.9]} 14... Qb6 {[%clk 0:02:22.2]} 15. Qc1 {[%clk 0:02:28.2]} 15... Nd7
{[%clk 0:02:14.4]} 16. Rc3 {[%clk 0:02:25.5]} 16... Bg6 {[%clk 0:02:10]} 17.
Bxg6 {[%clk 0:02:14.5]} 17... hxg6 {[%clk 0:02:10.9]} 18. a3 {[%clk 0:02:07]}
18... f6 {[%clk 0:01:58.2]} 19. Qc2 {[%clk 0:02:02]} 19... g5 {[%clk 0:01:55]}
20. Bg3 {[%clk 0:01:48.5]} 20... f5 {[%clk 0:01:49.4]} 21. Rc1 {[%clk
0:01:40.3]} 21... f4 {[%clk 0:01:42.4]} 22. Bf2 {[%clk 0:01:23.2]} 22... Rf6
{[%clk 0:01:35.3]} 23. exf4 {[%clk 0:01:05.7]} 23... gxf4 {[%clk 0:01:36.2]} 24.
b4 {[%clk 0:00:46.9]} 24... Kf7 {[%clk 0:01:27.5]} 25. Qh7 {[%clk 0:00:38.7]}
25... Rh6 {[%clk 0:01:17]} 26. Qd3 {[%clk 0:00:38.4]} 26... g5 {[%clk 0:01:13]}
27. h3 {[%clk 0:00:35.1]} 27... Rf8 {[%clk 0:01:05]} 28. Re1 {[%clk 0:00:34.8]}
28... Qb5 {[%clk 0:00:56.8]} 29. Qc2 {[%clk 0:00:27.8]} 29... Nb6 {[%clk
0:00:53.6]} 30. Nc1 {[%clk 0:00:25.4]} 30... Nc4 {[%clk 0:00:52.1]} 31. Nd3
{[%clk 0:00:22.8]} 31... Kg8 {[%clk 0:00:49.2]} 32. Nc5 {[%clk 0:00:21.9]} 32...
Re8 {[%clk 0:00:45]} 33. Qe2 {[%clk 0:00:19.8]} 33... b6 {[%clk 0:00:37.7]} 34.
Nd7 {[%clk 0:00:15.4]} 34... Nxd4 {[%clk 0:00:34.1]} 35. Nf6+ {[%clk 0:00:10.8]}
35... Rxf6 {[%clk 0:00:32.6]} 36. Bxd4 {[%clk 0:00:11.7]} 36... Rh6 {[%clk
0:00:32]} 37. Rc2 {[%clk 0:00:09.6]} 37... Qc6 {[%clk 0:00:31.8]} 38. Qf2 {[%clk
0:00:09.3]} 38... b5 {[%clk 0:00:32]} 39. Rce2 {[%clk 0:00:09.7]} 39... Qd6
{[%clk 0:00:31.4]} 40. Bc5 {[%clk 0:00:08.8]} 40... Qc7 {[%clk 0:00:31.1]} 41.
Qd4 {[%clk 0:00:09.7]} 41... Kf7 {[%clk 0:00:28.8]} 42. Qd3 {[%clk 0:00:08.9]}
42... Rg6 {[%clk 0:00:26.9]} 43. Rc2 {[%clk 0:00:07.9]} 43... Qd7 {[%clk
0:00:24.3]} 44. Rce2 {[%clk 0:00:08.4]} 44... Rh8 {[%clk 0:00:21.3]} 45. Bd4
{[%clk 0:00:08.8]} 45... Re8 {[%clk 0:00:20.4]} 46. Ba1 {[%clk 0:00:09.4]} 46...
Qd6 {[%clk 0:00:20.2]} 47. Qd4 {[%clk 0:00:09.5]} 47... e5 {[%clk 0:00:20.5]}
48. Qc3 {[%clk 0:00:09.4]} 48... d4 {[%clk 0:00:20.2]} 49. Qd3 {[%clk
0:00:09.3]} 49... Qd5 {[%clk 0:00:20.4]} 50. Re4 {[%clk 0:00:09.4]} 50... Kg7
{[%clk 0:00:20.6]} 51. R4e2 {[%clk 0:00:09.6]} 51... Ree6 {[%clk 0:00:20.3]} 52.
Rc2 {[%clk 0:00:09.8]} 52... Re7 {[%clk 0:00:15.2]} 53. a4 {[%clk 0:00:10.3]}
53... Rc6 {[%clk 0:00:13.1]} 54. axb5 {[%clk 0:00:10.9]} 54... axb5 {[%clk
0:00:14]} 55. Ra2 {[%clk 0:00:11.2]} 55... Rcc7 {[%clk 0:00:13.8]} 56. Bb2
{[%clk 0:00:11.2]} 56... Qe6 {[%clk 0:00:12.1]} 57. Rea1 {[%clk 0:00:10.1]}
57... Qg6 {[%clk 0:00:11.8]} 58. Qe2 {[%clk 0:00:09.5]} 58... d3 {[%clk
0:00:11.2]} 59. Qf2 {[%clk 0:00:08.9]} 59... Qb6 {[%clk 0:00:09.7]} 60. Ra6
{[%clk 0:00:08]} 60... Qxf2+ {[%clk 0:00:09]} 61. Kxf2 {[%clk 0:00:08.9]} 61...
Nxb2 {[%clk 0:00:09.6]} 62. Rd6 {[%clk 0:00:08.4]} 62... Nc4 {[%clk 0:00:09.3]}
63. Rd8 {[%clk 0:00:06.9]} 63... Rcd7 {[%clk 0:00:09.5]} 64. Rc8 {[%clk
0:00:06.1]} 64... d2 {[%clk 0:00:09.7]} 65. Rd1 {[%clk 0:00:07]} 65... Nb2
{[%clk 0:00:09.4]} 66. Ke2 {[%clk 0:00:07.9]} 66... Nxd1 {[%clk 0:00:09.4]} 67.
Kxd1 {[%clk 0:00:08.8]} 67... e4 {[%clk 0:00:10]} 68. Rc5 {[%clk 0:00:09]} 68...
exf3 {[%clk 0:00:09.3]} 69. gxf3 {[%clk 0:00:08.8]} 69... Kg6 {[%clk 0:00:09.1]}
70. Kc2 {[%clk 0:00:09.7]} 70... Re1 {[%clk 0:00:08.7]} 71. Rc6+ {[%clk
0:00:08.9]} 71... Kh5 {[%clk 0:00:09.3]} 72. Rc8 {[%clk 0:00:07.7]} 72... Rc1+
{[%clk 0:00:09.3]} 73. Kb2 {[%clk 0:00:07.1]} 73... Rxc8 {[%clk 0:00:10.2]} 74.
Ka3 {[%clk 0:00:06.5]} 74... d1=Q {[%clk 0:00:10.5]} 75. h4 {[%clk 0:00:07.4]}
75... Rd3+ {[%clk 0:00:10.2]} 76. Kb2 {[%clk 0:00:08.3]} 76... Qb3+ {[%clk
0:00:10.3]} 77. Ka1 {[%clk 0:00:07.6]} 77... Rd1# {[%clk 0:00:11.2]} 0-1

[Event "Early-Titled-Tuesday-Blitz-May-14-2024"]
[Site "Chess.com"]
[Date "2024.05.14"]
[Round "3"]
[White "SuperJesus88"]
[Black "ViIIagra"]
[Result "0-1"]
[WhiteElo "2519"]
[BlackElo "2848"]
[TimeControl "180+1"]
[EndTime "8:30:59 PDT"]
[Termination "ViIIagra won on time"]

1. e4 {[%clk 0:03:00.9]} 1... d6 {[%clk 0:02:51.9]} 2. d4 {[%clk 0:03:00.4]}
2... Nf6 {[%clk 0:02:51.8]} 3. Nc3 {[%clk 0:03:00.3]} 3... g6 {[%clk 0:02:52.5]}
4. h3 {[%clk 0:02:59.1]} 4... Bg7 {[%clk 0:02:51.8]} 5. Nf3 {[%clk 0:02:59.8]}
5... O-O {[%clk 0:02:51.8]} 6. Be3 {[%clk 0:03:00.5]} 6... Nc6 {[%clk
0:02:48.8]} 7. Qd2 {[%clk 0:03:00.3]} 7... e5 {[%clk 0:02:43.1]} 8. dxe5 {[%clk
0:03:00.5]} 8... Nxe5 {[%clk 0:02:40.8]} 9. Nxe5 {[%clk 0:03:00.3]} 9... dxe5
{[%clk 0:02:41.7]} 10. Qxd8 {[%clk 0:02:59.3]} 10... Rxd8 {[%clk 0:02:42.6]} 11.
g4 {[%clk 0:02:56.9]} 11... Be6 {[%clk 0:02:39.8]} 12. a3 {[%clk 0:02:49.3]}
12... a6 {[%clk 0:02:35.9]} 13. Rd1 {[%clk 0:02:49.3]} 13... b5 {[%clk
0:02:30.2]} 14. g5 {[%clk 0:02:41.9]} 14... Ne8 {[%clk 0:02:15.3]} 15. Nd5
{[%clk 0:02:34.2]} 15... Rd7 {[%clk 0:02:14.7]} 16. Be2 {[%clk 0:02:30.9]} 16...
Rad8 {[%clk 0:02:11.2]} 17. h4 {[%clk 0:02:21.4]} 17... Bxd5 {[%clk 0:01:51.3]}
18. exd5 {[%clk 0:02:20.7]} 18... Rxd5 {[%clk 0:01:52.2]} 19. Rxd5 {[%clk
0:02:21]} 19... Rxd5 {[%clk 0:01:53.1]} 20. Bf3 {[%clk 0:02:21.4]} 20... Rd8
{[%clk 0:01:50.9]} 21. Bb7 {[%clk 0:02:19.1]} 21... Nd6 {[%clk 0:01:49.9]} 22.
Bc6 {[%clk 0:02:17.8]} 22... Nc4 {[%clk 0:01:50]} 23. Bc1 {[%clk 0:02:18]} 23...
e4 {[%clk 0:01:44.1]} 24. b3 {[%clk 0:02:16.2]} 24... Rd6 {[%clk 0:01:16.9]} 25.
Bb7 {[%clk 0:02:01.2]} 25... Nb6 {[%clk 0:00:33.8]} 26. Bxe4 {[%clk 0:01:53.8]}
26... Re6 {[%clk 0:00:34.4]} 27. f3 {[%clk 0:01:54.2]} 27... Nd5 {[%clk
0:00:35.1]} 28. O-O {[%clk 0:01:36.7]} 28... Nc3 {[%clk 0:00:35.1]} 29. Bd3
{[%clk 0:01:37]} 29... Bd4+ {[%clk 0:00:34.5]} 30. Kg2 {[%clk 0:01:35.9]} 30...
c6 {[%clk 0:00:28]} 31. Bd2 {[%clk 0:01:30.7]} 31... f5 {[%clk 0:00:27.2]} 32.
Re1 {[%clk 0:01:24.3]} 32... Rxe1 {[%clk 0:00:24.9]} 33. Bxe1 {[%clk 0:01:25.2]}
33... Nd5 {[%clk 0:00:25.7]} 34. Bg3 {[%clk 0:01:14]} 34... Bc3 {[%clk
0:00:22.3]} 35. Kf2 {[%clk 0:01:07]} 35... Kf7 {[%clk 0:00:22.6]} 36. Ke2 {[%clk
0:01:06]} 36... Ke6 {[%clk 0:00:23.2]} 37. a4 {[%clk 0:01:04.9]} 37... Be5
{[%clk 0:00:23.2]} 38. Be1 {[%clk 0:01:00.4]} 38... Nf4+ {[%clk 0:00:21.1]} 39.
Kd2 {[%clk 0:00:55.9]} 39... Kd6 {[%clk 0:00:13]} 40. Bf1 {[%clk 0:00:53.1]}
40... Nd5 {[%clk 0:00:12]} 41. Kd3 {[%clk 0:00:48.1]} 41... Nf4+ {[%clk
0:00:09.8]} 42. Ke3 {[%clk 0:00:45.1]} 42... Ne6 {[%clk 0:00:10.3]} 43. axb5
{[%clk 0:00:35.4]} 43... axb5 {[%clk 0:00:10.4]} 44. c3 {[%clk 0:00:30.8]} 44...
Bf4+ {[%clk 0:00:10.8]} 45. Kd3 {[%clk 0:00:29.3]} 45... Nc5+ {[%clk 0:00:11.5]}
46. Kc2 {[%clk 0:00:29.7]} 46... Nd7 {[%clk 0:00:12.4]} 47. Be2 {[%clk
0:00:25.1]} 47... Be3 {[%clk 0:00:12.4]} 48. Kd3 {[%clk 0:00:23.6]} 48... f4
{[%clk 0:00:13]} 49. b4 {[%clk 0:00:19.8]} 49... Kd5 {[%clk 0:00:12.1]} 50. Kc2
{[%clk 0:00:18.1]} 50... Ne5 {[%clk 0:00:12.7]} 51. Kb3 {[%clk 0:00:18.2]} 51...
Nf7 {[%clk 0:00:12.7]} 52. c4+ {[%clk 0:00:18]} 52... Ke5 {[%clk 0:00:08.1]} 53.
cxb5 {[%clk 0:00:15.7]} 53... cxb5 {[%clk 0:00:09]} 54. Bxb5 {[%clk 0:00:15.8]}
54... Nd6 {[%clk 0:00:09.7]} 55. Be2 {[%clk 0:00:15.8]} 55... Kd5 {[%clk
0:00:08.8]} 56. Bc3 {[%clk 0:00:15.1]} 56... Nf5 {[%clk 0:00:08.2]} 57. Be1
{[%clk 0:00:15.4]} 57... Nd6 {[%clk 0:00:08.7]} 58. b5 {[%clk 0:00:14.4]} 58...
Kc5 {[%clk 0:00:09]} 59. Ka4 {[%clk 0:00:14.7]} 59... Kb6 {[%clk 0:00:05.8]} 60.
Ba5+ {[%clk 0:00:14.7]} 60... Kb7 {[%clk 0:00:06.1]} 61. Bb4 {[%clk 0:00:15.2]}
61... Nf5 {[%clk 0:00:06.2]} 62. Be1 {[%clk 0:00:15.9]} 62... Nd4 {[%clk
0:00:06.3]} 63. Bd1 {[%clk 0:00:15.9]} 63... Kb6 {[%clk 0:00:07.1]} 64. Bc3
{[%clk 0:00:16.2]} 64... Nxb5 {[%clk 0:00:07.4]} 65. Bb2 {[%clk 0:00:14.4]}
65... Bf2 {[%clk 0:00:07.7]} 66. Be2 {[%clk 0:00:13.6]} 66... Nc7 {[%clk
0:00:07.1]} 67. Be5 {[%clk 0:00:13.6]} 67... Nd5 {[%clk 0:00:07.3]} 68. Bc4
{[%clk 0:00:13.2]} 68... Kc5 {[%clk 0:00:08]} 69. Bxd5 {[%clk 0:00:05]} 69...
Kxd5 {[%clk 0:00:08.9]} 70. Bxf4 {[%clk 0:00:05.6]} 70... Kc4 {[%clk 0:00:08.7]}
71. Ka3 {[%clk 0:00:02]} 71... Bxh4 {[%clk 0:00:08.9]} 72. Kb2 {[%clk
0:00:01.5]} 72... Kd3 {[%clk 0:00:09.5]} 73. Bg3 {[%clk 0:00:00.2]} 73... Bxg3
{[%clk 0:00:09.4]} 74. f4 {[%clk 0:00:00.7]} 74... Bxf4 {[%clk 0:00:09.9]} 75.
Kb3 {[%clk 0:00:01.4]} 75... Bxg5 {[%clk 0:00:10.3]} 0-1